fUST/lending_fUST_20240226
["ID","MTS","AMOUNT","RATE_DAILY","PERIOD"]
[315212626,1708941042341,-500.0,0.00019178,2]
[315212628,1708941042350,-500.0,0.00019178,2]
[315212630,1708941042360,-500.0,0.00019178,2]
[315212632,1708941042369,-500.0,0.00019178,2]
[315212634,1708941042380,-500.0,0.00019178,2]
[315212636,1708941042389,-500.0,0.00019178,2]
[315212638,1708941042398,-588.75636197,0.00019178,2]
[315212640,1708941042408,-1219.12,0.00019178,2]
[315212642,1708941042417,-500.0,0.00019178,2]
[315212644,1708941042426,-500.0,0.00019178,2]
[315212646,1708941042435,-500.0,0.00019178,2]
[315212648,1708941042444,-500.0,0.00019178,2]
[315212649,1708941042453,-500.0,0.00019178,2]
[315212651,1708941042462,-500.89874379,0.00019178,2]
[315212653,1708941042471,-1794.71,0.00019178,2]
[315212655,1708941042482,-500.0,0.00019178,2]
[315212658,1708941042492,-500.0,0.00019178,2]
[315212660,1708941042501,-201.81516256,0.00019178,2]
[315212661,1708941042511,-500.0,0.00019178,2]
[315212663,1708941042520,-500.0,0.00019178,2]
[315212665,1708941042529,-500.0,0.00019178,2]
[315212667,1708941042540,-500.0,0.00019178,2]
[315212669,1708941042550,-502.01865313,0.00019178,2]
[315212671,1708941042559,-1457.65,0.00019178,2]
[315212672,1708941042568,-500.0,0.00019178,2]
[315212674,1708941042577,-500.0,0.00019178,2]
[315212676,1708941042587,-500.0,0.00019178,2]
[315212678,1708941042596,-502.11011131,0.00019178,2]
[315212680,1708941042605,-500.0,0.00019178,2]
[315212682,1708941042614,-500.0,0.00019178,2]
[315212683,1708941042623,-500.0,0.00019178,2]
[315212684,1708941042632,-500.0,0.00019178,2]
[315212686,1708941042641,-500.0,0.00019178,2]
[315212688,1708941042650,-500.0,0.00019178,2]
[315212689,1708941042658,-500.0,0.00019178,2]
[315212690,1708941042668,-501.29954357,0.00019178,2]
[315212692,1708941042677,-500.0,0.00019178,2]
[315212694,1708941042686,-505.95058571,0.00019178,2]
[315212696,1708941042695,-500.0,0.00019178,2]
[315212698,1708941042703,-500.0,0.00019178,2]
[315212700,1708941042712,-608.21516121,0.00019178,2]
[315212702,1708941042721,-668.95,0.00019178,2]
[315212703,1708941042730,-646.85521638,0.00019178,2]
[315212705,1708941042739,-500.0,0.00019178,2]
[315212707,1708941042748,-502.48047561,0.00019178,2]
[315212709,1708941042758,-500.0,0.00019178,2]
[315212710,1708941042771,-239.92493776,0.00019178,2]
[315212711,1708941042780,-500.0,0.00019178,2]
[315212712,1708941042790,-910.9,0.00019178,2]
[315212713,1708941042799,-1555.8,0.00019178,2]
[315212714,1708941042808,-312.51592479,0.00019178,2]
[315212715,1708941042817,-500.0,0.00019178,2]
[315212716,1708941042826,-500.0,0.00019178,2]
[315212717,1708941042836,-501.15891144,0.00019178,2]
[315212718,1708941042845,-500.0,0.00019178,2]
[315212719,1708941042855,-500.0,0.00019178,2]
[315212720,1708941042863,-500.0,0.00019178,2]
[315212721,1708941042872,-500.0,0.00019178,2]
[315212722,1708941042881,-500.0,0.00019178,2]
[315212723,1708941042890,-500.0,0.00019178,2]
[315212724,1708941042899,-500.0,0.00019178,2]
[315212725,1708941042908,-500.0,0.00019178,2]
[315212726,1708941042917,-500.0,0.00019178,2]
[315212727,1708941042926,-500.0,0.00019178,2]
[315212728,1708941042935,-500.0,0.00019178,2]
[315212729,1708941042944,-500.0,0.00019178,2]
[315212730,1708941042953,-500.0,0.00019178,2]
[315212731,1708941042962,-544.80572393,0.00019178,2]
[315212732,1708941042971,-500.0,0.00019178,2]
[315212733,1708941042980,-500.0,0.00019178,2]
[315212734,1708941042989,-503.09950777,0.00019178,2]
[315212735,1708941042998,-500.0,0.00019178,2]
[315212736,1708941043007,-500.0,0.00019178,2]
[315212737,1708941043016,-2694.47,0.00019178,2]
[315212739,1708941043026,-501.29706972,0.00019178,2]
[315212741,1708941043034,-500.0,0.00019178,2]
[315212742,1708941043044,-3780.8,0.00019178,2]
[315212743,1708941043053,-500.0,0.00019178,2]
[315212744,1708941043062,-1313.6,0.00019178,2]
[315212745,1708941043072,-684.71,0.00019178,2]
[315212746,1708941043081,-500.0,0.00019178,2]
[315212747,1708941043090,-500.0,0.00019178,2]
[315212748,1708941043098,-500.0,0.00019178,2]
[315212749,1708941043107,-845.4,0.00019178,2]
[315212750,1708941043116,-500.0,0.00019178,2]
[315212751,1708941043125,-500.0,0.00019178,2]
[315212752,1708941043134,-212.2436076,0.00019178,2]
[315212753,1708941043143,-501.00040851,0.00019178,2]
[315212754,1708941043156,-500.0,0.00019178,2]
[315212755,1708941043165,-554.17,0.00019178,2]
[315212756,1708941043173,-501.16145419,0.00019178,2]
[315212757,1708941043187,-500.0,0.00019178,2]
[315212758,1708941043196,-1740.87,0.00019178,2]
[315212759,1708941043205,-500.0,0.00019178,2]
[315212760,1708941043214,-2069.57,0.00019178,2]
[315212761,1708941043223,-502.22509866,0.00019178,2]
[315212762,1708941043232,-2573.28,0.00019178,2]
[315212763,1708941043241,-500.0,0.00019178,2]
[315212764,1708941043250,-500.0,0.00019178,2]
[315212765,1708941043259,-640.38620748,0.00019178,2]
[315212766,1708941043268,-500.0,0.00019178,2]
[315212767,1708941043278,-2399.49,0.00019178,2]
[315212768,1708941043287,-500.0,0.00019178,2]
[315212769,1708941043298,-500.0,0.00019178,2]
[315212770,1708941043306,-2035.92,0.00019178,2]
[315212771,1708941043315,-500.0,0.00019178,2]
[315212772,1708941043325,-500.0,0.00019178,2]
[315212773,1708941043334,-1000.0,0.00019178,2]
[315212774,1708941043343,-500.0,0.00019178,2]
[315212775,1708941043352,-500.0,0.00019178,2]
[315212776,1708941043361,-500.0,0.00019178,2]
[315212777,1708941043370,-500.0,0.00019178,2]
[315212778,1708941043379,-500.0,0.00019178,2]
[315212779,1708941043388,-22364.04,0.00019178,2]
[315212780,1708941043397,-500.0,0.00019178,2]
[315212781,1708941043406,-500.0,0.00019178,2]
[315212782,1708941043415,-500.0,0.00019178,2]
[315212783,1708941043424,-500.0,0.00019178,2]
[315212784,1708941043433,-10968.23,0.00019178,2]
[315212785,1708941043443,-500.0,0.00019178,2]
[315212786,1708941043452,-500.0,0.00019178,2]
[315212787,1708941043461,-500.0,0.00019178,2]
[315212788,1708941043470,-500.0,0.00019178,2]
[315212790,1708941043480,-4231.45,0.00019178,2]
[315212792,1708941043489,-500.0,0.00019178,2]
[315212794,1708941043498,-500.0,0.00019178,2]
[315212796,1708941043508,-500.0,0.00019178,2]
[315212798,1708941043517,-500.0,0.00019178,2]
[315212800,1708941043526,-500.0,0.00019178,2]
[315212802,1708941043535,-501.32910414,0.00019178,2]
[315212804,1708941043545,-500.0,0.00019178,2]
[315212806,1708941043554,-500.0,0.00019178,2]
[315212808,1708941043563,-501.16229543,0.00019178,2]
[315212810,1708941043573,-500.76681216,0.00019178,2]
[315212811,1708941043582,-234.57397735,0.00019178,2]
[315212812,1708941043591,-500.20438763,0.00019178,2]
[315212814,1708941043600,-500.0,0.00019178,2]
[315212815,1708941043609,-500.0,0.00019178,2]
[315212817,1708941043618,-359.8403748,0.00019178,2]
[315212819,1708941043627,-501.0884164,0.00019178,2]
[315212821,1708941043636,-500.3462092,0.00019178,2]
[315212823,1708941043645,-2229.23,0.00019178,2]
[315212825,1708941043655,-500.0,0.00019178,2]
[315212827,1708941043664,-500.0,0.00019178,2]
[315212829,1708941043673,-500.0,0.00019178,2]
[315212831,1708941043681,-2187.15,0.00019178,2]
[315212833,1708941043693,-500.0,0.00019178,2]
[315212835,1708941043702,-500.0,0.00019178,2]
[315212837,1708941043711,-509.9265336,0.00019178,2]
[315212839,1708941043720,-500.0,0.00019178,2]
[315212841,1708941043729,-500.0,0.00019178,2]
[315212843,1708941043738,-1754.31,0.00019178,2]
[315212845,1708941043747,-693.68,0.00019178,2]
[315212847,1708941043761,-500.0,0.00019178,2]
[315212849,1708941043770,-500.0,0.00019178,2]
[315212851,1708941043779,-500.0,0.00019178,2]
[315212853,1708941043789,-850.07,0.00019178,2]
[315212855,1708941043799,-500.0,0.00019178,2]
[315212857,1708941043809,-500.0,0.00019178,2]
[315212859,1708941043818,-7967.99,0.00019178,2]
[315212861,1708941043827,-500.0,0.00019178,2]
[315212863,1708941043837,-500.0,0.00019178,2]
[315212865,1708941043847,-2438.08,0.00019178,2]
[315212867,1708941043856,-500.0,0.00019178,2]
[315212869,1708941043865,-840.49,0.00019178,2]
[315212871,1708941043874,-500.0,0.00019178,2]
[315212872,1708941043883,-500.0,0.00019178,2]
[315212875,1708941043892,-518.49613271,0.00019178,2]
[315212877,1708941043901,-500.0,0.00019178,2]
[315212879,1708941043910,-500.0,0.00019178,2]
[315212881,1708941043919,-500.0,0.00019178,2]
[315212882,1708941043929,-500.0,0.00019178,2]
[315212884,1708941043938,-500.0,0.00019178,2]
[315212886,1708941043947,-500.0,0.00019178,2]
[315212888,1708941043956,-501.13519098,0.00019178,2]
[315212891,1708941043965,-500.0,0.00019178,2]
[315212893,1708941043974,-500.0,0.00019178,2]
[315212895,1708941043984,-500.0,0.00019178,2]
[315212897,1708941043993,-500.0,0.00019178,2]
[315212899,1708941044002,-1252.13,0.00019178,2]
[315212901,1708941044011,-502.15505867,0.00019178,2]
[315212902,1708941044020,-266.51557641,0.00019178,2]
[315212904,1708941044029,-22037.8,0.00019178,2]
[315212906,1708941044039,-500.58116796,0.00019178,2]
[315212908,1708941044049,-500.0,0.00019178,2]
[315212910,1708941044058,-500.0,0.00019178,2]
[315212912,1708941044067,-500.0,0.00019178,2]
[315212914,1708941044076,-500.0,0.00019178,2]
[315212916,1708941044086,-500.0,0.00019178,2]
[315212918,1708941044095,-165.843375,0.00019178,2]
[315212920,1708941044104,-166.666666,0.00019178,2]
[315212922,1708941044113,-165.747356,0.00019178,2]
[315212924,1708941044122,-164.959788,0.00019178,2]
[315212926,1708941044131,-287.6731672,0.000192,2]
[315212928,1708941044140,-306.0,0.000192,2]
[315212930,1708941044149,-153.0,0.000192,2]
[315212932,1708941044158,-153.0,0.000192,2]
[315212934,1708941044167,-153.0,0.000192,2]
[315212936,1708941044177,-306.0,0.000192,2]
[315212938,1708941044186,-153.0,0.000192,2]
[315212940,1708941044195,-153.0,0.000192,2]
[315212942,1708941044204,-153.0,0.000192,2]
[315212944,1708941044214,-153.0,0.000192,2]
[315212946,1708941044222,-153.0,0.000192,2]
[315212948,1708941044232,-153.0,0.000192,2]
[315212949,1708941044242,-153.0,0.000192,2]
[315212951,1708941044251,-153.0,0.000192,2]
[315212953,1708941044261,-200.5826354,0.000192,2]
[315212955,1708941044271,-153.0,0.000192,2]
[315212957,1708941044281,-306.0,0.000192,2]
[315212958,1708941044290,-200.5826354,0.000192,2]
[315212960,1708941044299,-153.0,0.000192,2]
[315212962,1708941044308,-153.0,0.000192,2]
[315212964,1708941044317,-200.5826354,0.000192,2]
[315212966,1708941044326,-302.95763246,0.00019345,2]
[315212968,1708941044335,-431.2948905,0.0001937,2]
[315212970,1708941044344,-306.0,0.00019397,2]
[315212972,1708941044354,-153.0,0.000194,2]
[315212973,1708941044363,-153.0,0.000194,2]
[315212974,1708941044372,-153.0,0.000194,2]
[315212976,1708941044382,-153.0,0.000194,2]
[315212978,1708941044391,-200.5826354,0.000194,2]
[315212983,1708941044495,-155.5812671,0.00019442,2]
[315212984,1708941044505,-175.13400114,0.00019442,3]
[315212985,1708941044515,-500.0,0.00019448,2]
[315212986,1708941044524,-747.05323267,0.0001945,2]
[315212987,1708941044533,-4697.79543124,0.0001945,2]
[315212988,1708941044544,-592.7475228,0.00019451,2]
[315212989,1708941044553,-500.0,0.00019451,2]
[315212990,1708941044561,-500.0,0.00019451,2]
[315212991,1708941044571,-500.0,0.00019451,2]
[315212992,1708941044580,-500.0,0.00019452,2]
[315212993,1708941044589,-151.48714558,0.00019452,2]
[315212994,1708941044598,-500.0,0.00019452,2]
[315212995,1708941044607,-1353.55,0.00019452,2]
[315212996,1708941044616,-773.65,0.00019452,2]
[315212997,1708941044625,-500.0,0.00019452,2]
[315212998,1708941044635,-176.66942179,0.00019452,2]
[315212999,1708941044644,-500.0,0.00019452,2]
[315213000,1708941044653,-536.17501023,0.00019452,2]
[315213001,1708941044662,-500.0,0.00019452,2]
[315213002,1708941044671,-502.37578705,0.00019452,2]
[315213003,1708941044680,-500.0,0.00019452,2]
[315213004,1708941044689,-500.0,0.00019452,2]
[315213005,1708941044698,-500.0,0.00019452,2]
[315213006,1708941044707,-500.0,0.00019452,2]
[315213007,1708941044716,-501.16867912,0.00019452,2]
[315213008,1708941044725,-3227.83,0.00019452,2]
[315213009,1708941044734,-603.8,0.00019452,2]
[315213010,1708941044743,-1372.76,0.00019452,2]
[315213011,1708941044753,-500.0,0.00019452,2]
[315213012,1708941044762,-1461.3,0.00019452,2]
[315213013,1708941044774,-360.90910848,0.00019452,2]
[315213014,1708941044783,-607.19,0.00019452,2]
[315213015,1708941044793,-500.0,0.00019452,2]
[315213016,1708941044802,-500.0,0.00019452,2]
[315213017,1708941044812,-500.0,0.00019452,2]
[315213018,1708941044821,-349.00690786,0.00019452,2]
[315213019,1708941044830,-500.0,0.00019452,2]
[315213020,1708941044841,-259.9324532,0.00019452,2]
[315213021,1708941044850,-1219.12,0.00019452,2]
[315213022,1708941044859,-500.0,0.00019452,2]
[315213023,1708941044868,-500.0,0.00019452,2]
[315213024,1708941044877,-500.0,0.00019452,2]
[315213025,1708941044887,-500.0,0.00019452,2]
[315213026,1708941044896,-180.0,0.00019452,2]
[315213027,1708941044905,-1794.71,0.00019452,2]
[315213028,1708941044915,-500.0,0.00019452,2]
[315213029,1708941044924,-506.01947048,0.00019452,2]
[315213030,1708941044933,-500.0,0.00019452,2]
[315213031,1708941044943,-1457.65,0.00019452,2]
[315213032,1708941044952,-500.0,0.00019452,2]
[315213033,1708941044961,-185.27418586,0.00019452,2]
[315213034,1708941044970,-500.0,0.00019452,2]
[315213035,1708941044979,-500.0,0.00019452,2]
[315213036,1708941044989,-500.0,0.00019452,2]
[315213037,1708941044998,-500.0,0.00019452,2]
[315213038,1708941045007,-500.0,0.00019452,2]
[315213039,1708941045016,-500.0,0.00019452,2]
[315213040,1708941045025,-500.0,0.00019452,2]
[315213041,1708941045034,-668.95,0.00019452,2]
[315213042,1708941045045,-500.0,0.00019452,2]
[315213043,1708941045054,-910.9,0.00019452,2]
[315213044,1708941045063,-1555.8,0.00019452,2]
[315213045,1708941045072,-500.0,0.00019452,2]
[315213046,1708941045081,-500.0,0.00019452,2]
[315213047,1708941045091,-500.0,0.00019452,2]
[315213048,1708941045100,-500.0,0.00019452,2]
[315213049,1708941045109,-500.0,0.00019452,2]
[315213050,1708941045119,-476.90194368,0.00019452,2]
[315213051,1708941045128,-500.0,0.00019452,2]
[315213052,1708941045137,-500.0,0.00019452,2]
[315213053,1708941045147,-500.0,0.00019452,2]
[315213054,1708941045155,-500.0,0.00019452,2]
[315213055,1708941045164,-551.4523923,0.00019452,2]
[315213056,1708941045173,-500.0,0.00019452,2]
[315213057,1708941045182,-500.0,0.00019452,2]
[315213058,1708941045192,-500.0,0.00019452,2]
[315213059,1708941045201,-2694.47,0.00019452,2]
[315213060,1708941045210,-3780.8,0.00019452,2]
[315213061,1708941045219,-500.0,0.00019452,2]
[315213062,1708941045229,-499.53437694,0.00019452,2]
[315213063,1708941045238,-1313.6,0.00019452,2]
[315213064,1708941045247,-684.71,0.00019452,2]
[315213065,1708941045256,-500.0,0.00019452,2]
[315213066,1708941045266,-845.4,0.00019452,2]
[315213067,1708941045275,-500.0,0.00019452,2]
[315213068,1708941045285,-500.0,0.00019452,2]
[315213069,1708941045295,-554.17,0.00019452,2]
[315213070,1708941045304,-203.42282125,0.00019452,2]
[315213071,1708941045313,-1740.87,0.00019452,2]
[315213072,1708941045323,-500.0,0.00019452,2]
[315213073,1708941045332,-2069.57,0.00019452,2]
[315213074,1708941045343,-2573.28,0.00019452,2]
[315213075,1708941045352,-500.0,0.00019452,2]
[315213076,1708941045362,-500.0,0.00019452,2]
[315213077,1708941045372,-2399.49,0.00019452,2]
[315213078,1708941045382,-500.0,0.00019452,2]
[315213079,1708941045391,-500.0,0.00019452,2]
[315213080,1708941045401,-500.0,0.00019452,2]
[315213081,1708941045410,-2035.92,0.00019452,2]
[315213082,1708941045419,-500.0,0.00019452,2]
[315213083,1708941045428,-544.61600458,0.00019452,2]
[315213084,1708941045437,-380.88443286,0.00019452,2]
[315213085,1708941045446,-500.0,0.00019452,2]
[315213086,1708941045456,-500.81546176,0.00019452,2]
[315213087,1708941045465,-22364.04,0.00019452,2]
[315213088,1708941045474,-500.0,0.00019452,2]
[315213089,1708941045483,-500.0,0.00019452,2]
[315213090,1708941045492,-500.0,0.00019452,2]
[315213091,1708941045501,-500.0,0.00019452,2]
[315213092,1708941045511,-10968.23,0.00019452,2]
[315213093,1708941045520,-500.0,0.00019452,2]
[315213094,1708941045529,-500.0,0.00019452,2]
[315213095,1708941045539,-500.0,0.00019452,2]
[315213096,1708941045548,-4231.45,0.00019452,2]
[315213097,1708941045557,-500.0,0.00019452,2]
[315213098,1708941045566,-238.35007482,0.00019452,2]
[315213099,1708941045575,-500.0,0.00019452,2]
[315213100,1708941045584,-487.01483259,0.00019452,2]
[315213101,1708941045593,-500.0,0.00019452,2]
[315213102,1708941045603,-500.0,0.00019452,2]
[315213103,1708941045612,-500.0,0.00019452,2]
[315213104,1708941045622,-2229.23,0.00019452,2]
[315213105,1708941045631,-500.0,0.00019452,2]
[315213106,1708941045640,-500.0,0.00019452,2]
[315213107,1708941045650,-2187.15,0.00019452,2]
[315213108,1708941045658,-500.0,0.00019452,2]
[315213109,1708941045667,-500.0,0.00019452,2]
[315213110,1708941045676,-1754.31,0.00019452,2]
[315213111,1708941045685,-693.68,0.00019452,2]
[315213112,1708941045695,-436.52101816,0.00019452,2]
[315213113,1708941045705,-850.07,0.00019452,2]
[315213114,1708941045714,-500.0,0.00019452,2]
[315213115,1708941045723,-500.0,0.00019452,2]
[315213116,1708941045733,-7967.99,0.00019452,2]
[315213117,1708941045742,-500.0,0.00019452,2]
[315213118,1708941045751,-2438.08,0.00019452,2]
[315213119,1708941045765,-500.0,0.00019452,2]
[315213120,1708941045775,-840.49,0.00019452,2]
[315213121,1708941045784,-507.00886275,0.00019452,2]
[315213122,1708941045795,-500.0,0.00019452,2]
[315213123,1708941045804,-500.0,0.00019452,2]
[315213124,1708941045814,-500.0,0.00019452,2]
[315213125,1708941045823,-500.0,0.00019452,2]
[315213126,1708941045832,-1252.13,0.00019452,2]
[315213127,1708941045842,-22037.8,0.00019452,2]
[315213128,1708941045852,-500.0,0.00019452,2]
[315213129,1708941045862,-176.7302976,0.00019452,2]
[315213130,1708941045871,-182.85476532,0.00019462,2]
[315213131,1708941045880,-2101.38526708,0.00019467,2]
[315213132,1708941045889,-5229.02845546,0.00019471,2]
[315213133,1708941045898,-5229.02845546,0.00019484,2]
[315213134,1708941045908,-2101.38526708,0.00019485,2]
[315213135,1708941045917,-182.85476532,0.00019488,2]
[315213136,1708941045926,-5229.02845546,0.00019489,2]
[315213137,1708941045935,-2101.38526708,0.00019496,2]
[315213138,1708941045944,-182.85476532,0.00019498,2]
[315213139,1708941045953,-306.0,0.000195,2]
[315213140,1708941045962,-153.0,0.000195,2]
[315213141,1708941045971,-153.0,0.000195,2]
[315213142,1708941045980,-200.5826354,0.000195,2]
[315213143,1708941045989,-153.0,0.000195,2]
[315213145,1708941045999,-153.0,0.000195,2]
[315213146,1708941046008,-227.9162986,0.000195,2]
[315213147,1708941046017,-153.0,0.000195,2]
[315213148,1708941046026,-200.5826354,0.000195,2]
[315213149,1708941046035,-306.0,0.000195,2]
[315213150,1708941046045,-153.0,0.000195,2]
[315213151,1708941046054,-306.0,0.000195,2]
[315213153,1708941046063,-200.5826354,0.000195,2]
[315213154,1708941046072,-153.0,0.000195,2]
[315213155,1708941046081,-153.0,0.000195,2]
[315213156,1708941046090,-200.5826354,0.000195,2]
[315213157,1708941046099,-9602.07581363,0.00019564,2]
[315213158,1708941046108,-810.1601,0.00019564,2]
[315213159,1708941046118,-810.1601,0.00019564,2]
[315213160,1708941046127,-151.0,0.00019564,2]
[315213161,1708941046136,-500.0,0.00019587,2]
[315213162,1708941046145,-166.666666,0.00019627,2]
[315213164,1708941046155,-621.03277362,0.00019627,2]
[315213166,1708941046163,-210.0,0.00019657,3]
[315213168,1708941046173,-3944.705677,0.000197,2]
[315213170,1708941046181,-3944.705677,0.000197,2]
[315213171,1708941046191,-3944.705677,0.000197,2]
[315213173,1708941046200,-1585.25555234,0.000197,2]
[315213174,1708941046209,-1585.25555234,0.000197,2]
[315213175,1708941046219,-1585.25555234,0.000197,2]
[315213176,1708941046228,-1563.89446703,0.00019716,2]
[315213177,1708941046238,-500.0,0.00019722,2]
[315213178,1708941046247,-500.0,0.00019724,2]
[315213179,1708941046256,-500.0,0.00019724,2]
[315213180,1708941046265,-200.86010344,0.00019724,2]
[315213181,1708941046275,-500.0,0.00019724,2]
[315213183,1708941046284,-500.0,0.00019724,2]
[315213185,1708941046294,-500.0,0.00019724,2]
[315213187,1708941046303,-500.0,0.00019724,2]
[315213189,1708941046312,-500.0,0.00019724,2]
[315213190,1708941046321,-599.3898383,0.00019724,2]
[315213191,1708941046330,-500.0,0.00019724,2]
[315213192,1708941046340,-500.0,0.00019724,2]
[315213193,1708941046349,-500.0,0.00019724,2]
[315213195,1708941046358,-500.0,0.00019725,2]
[315213197,1708941046367,-500.0,0.00019725,2]
[315213199,1708941046377,-500.0,0.00019725,2]
[315213201,1708941046386,-500.0,0.00019726,2]
[315213202,1708941046395,-1353.55,0.00019726,2]
[315213203,1708941046405,-773.65,0.00019726,2]
[315213204,1708941046414,-500.0,0.00019726,2]
[315213205,1708941046423,-152.68202281,0.00019726,2]
[315213207,1708941046433,-500.0,0.00019726,2]
[315213208,1708941046442,-500.0,0.00019726,2]
[315213209,1708941046452,-500.0,0.00019726,2]
[315213210,1708941046462,-641.53712732,0.00019726,2]
[315213211,1708941046471,-477.02525582,0.00019726,2]
[315213212,1708941046480,-3227.83,0.00019726,2]
[315213213,1708941046489,-603.8,0.00019726,2]
[315213214,1708941046499,-1372.76,0.00019726,2]
[315213216,1708941046508,-174.1893576,0.00019726,2]
[315213218,1708941046518,-1461.3,0.00019726,2]
[315213220,1708941046529,-607.19,0.00019726,2]
[315213222,1708941046539,-500.0,0.00019726,2]
[315213223,1708941046549,-500.0,0.00019726,2]
[315213224,1708941046559,-500.0,0.00019726,2]
[315213225,1708941046568,-500.0,0.00019726,2]
[315213226,1708941046578,-151.0,0.00019726,2]
[315213227,1708941046587,-151.0,0.00019726,2]
[315213229,1708941046597,-1219.12,0.00019726,2]
[315213230,1708941046606,-500.0,0.00019726,2]
[315213232,1708941046615,-500.0,0.00019726,2]
[315213234,1708941046625,-500.0,0.00019726,2]
[315213236,1708941046635,-500.0,0.00019726,2]
[315213238,1708941046645,-1794.71,0.00019726,2]
[315213239,1708941046655,-500.0,0.00019726,2]
[315213240,1708941046664,-1457.65,0.00019726,2]
[315213241,1708941046674,-500.0,0.00019726,2]
[315213242,1708941046683,-500.0,0.00019726,2]
[315213243,1708941046693,-500.0,0.00019726,2]
[315213244,1708941046702,-500.0,0.00019726,2]
[315213245,1708941046711,-502.04463839,0.00019726,2]
[315213246,1708941046721,-500.0,0.00019726,2]
[315213247,1708941046730,-317.02712957,0.00019726,2]
[315213248,1708941046739,-500.0,0.00019726,2]
[315213249,1708941046749,-668.95,0.00019726,2]
[315213250,1708941046759,-500.0,0.00019726,2]
[315213251,1708941046774,-910.9,0.00019726,2]
[315213252,1708941046783,-1555.8,0.00019726,2]
[315213253,1708941046794,-500.0,0.00019726,2]
[315213254,1708941046803,-500.0,0.00019726,2]
[315213255,1708941046813,-500.0,0.00019726,2]
[315213256,1708941046823,-500.0,0.00019726,2]
[315213257,1708941046832,-500.0,0.00019726,2]
[315213258,1708941046842,-500.0,0.00019726,2]
[315213259,1708941046852,-500.0,0.00019726,2]
[315213260,1708941046861,-229.82906431,0.00019726,2]
[315213261,1708941046871,-500.0,0.00019726,2]
[315213262,1708941046880,-2694.47,0.00019726,2]
[315213263,1708941046890,-3780.8,0.00019726,2]
[315213264,1708941046900,-502.27680806,0.00019726,2]
[315213265,1708941047039,-500.0,0.00019452,2]
[315213266,1708941047051,-811.32319194,0.00019726,2]
[315213267,1708941047061,-684.71,0.00019726,2]
[315213268,1708941047070,-500.0,0.00019726,2]
[315213269,1708941047079,-845.4,0.00019726,2]
[315213270,1708941047089,-500.0,0.00019726,2]
[315213271,1708941047099,-554.17,0.00019726,2]
[315213272,1708941047109,-1257.68144042,0.00019726,2]
[315213273,1708941047203,-338.50226666,0.00019726,2]
[315213294,1708941331614,-1100.0,0.0002104,15]
[315213295,1708941336826,-1000.0,0.0002104,15]
[315213296,1708941350054,-500.0,0.0002104,15]
[315213297,1708941408298,-261.0,0.0002104,15]
[315213298,1708941426004,-3.08,0.0002104,15]
[315213299,1708941426047,-576.92,0.00022,14]
[315213300,1708941429155,508.766074,0.00016813,2]
[315213301,1708941488780,-300.0,0.00021,9]
[315213302,1708941528724,-751.76537803,0.00021,7]
[315213303,1708941528747,-248.23462197,0.00021,7]
[315213304,1708941559017,502.64151565,0.00021917,30]
[315213305,1708941615056,24900.0,0.00016674,2]